[Event "85th Tata Steel Challengers 2023"]
[Site "Wijk aan Zee"]
[Date "2023.01.14"]
[Round "1.1"]
[White "Tabatabaei, M. Amin"]
[Black "Adhiban, B.."]
[Result "1/2-1/2"]
[ECO "D31"]
[WhiteElo "2686"]
[BlackElo "2610"]
[Annotator "TA"]
[PlyCount "134"]
[EventDate "2023.01.10"]
[EventType "tourn"]
[EventCountry "NED"]
[SourceTitle "playchess.com"]
[Source "ChessBase"]
[SourceQuality "1"]
[TimeControl "40/6000+30:30/3000+30:900+30"]

{[%evp 14,134,16,16,19,18,20,12,7,5,31,10,15,13,110,127,141,136,141,110,56,50,116,79,106,100,120,123,110,119,111,36,32,31,24,25,34,31,31,31,18,15,15,15,20,8,8,8,12,8,10,8,8,8,8,7,17,8,8,10,20,13,20,8,8,8,8,8,8,8,8,8,8,8,8,8,8,8,8,8,8,8,8,8,8,0,8,0,8,8,8,8,8,8,8,8,8,8,8,8,8,8,8,8,8,8,8,8,8,8,8,8,8,8,8,8,8,8,8,-8,-8,-8,-8]} 1. d4 {[%emt 0:00:05]} d5 {[%emt 0:00:41]} 2. c4 {[%emt 0:00:27]} e6 {[%emt 0:00:13]} 3. cxd5 {[%emt 0:01:10]} exd5 {[%emt 0:00:04]} 4. Nc3 {[%emt 0:00:08]} c6 {[%emt 0:01:09]} 5. Bf4 {[%emt 0:00:25]} Bd6 {[%emt 0:01:17]} 6. Bxd6 {[%emt 0:00:22]} Qxd6 {[%emt 0:00:02]} 7. e3 {[%emt 0:00:13]} Nf6 {[%emt 0:04:46]} 8. Bd3 {[%emt 0:01:00]} O-O {[%emt 0:00:07] D31: Queen's Gambit Declined: Semi-Slav without ...Nf6 (+ Marshall Gambit and Noteboom) and Exchange Variation lines without ...Nf6.} 9. h3 {[%emt 0:02:43]} Re8 {[%emt 0:01:36]} 10. Qc2 {[%emt 0:02:43] [#]} b6 $146 {[%emt 0:04:57]} ({Predecessor:} 10... Nbd7 11. Nf3 Nf8 12. O-O Ng6 13. Rab1 Bd7 14. b4 a5 15. bxa5 Rxa5 16. Rxb7 Rea8 17. Rfb1 Bc8 18. R7b4 Nf8 19. a4 N8d7 20. R4b2 g6 21. Nd2 Ba6 {1-0 Keymer,V (2698)-Kilic,E (2437) Titled Tuesday intern op 22nd Nov Early blitz 2022 (9)}) 11. Rc1 {[%emt 0:09:35]} c5 {[%emt 0:34:00]} 12. dxc5 {[%emt 0:17:25]} bxc5 {[%emt 0:00:14]} 13. Nb5 {[%emt 0:01:18][%csl LRc5,LRd6][%mdl 64] Deflection} Qd8 {[%emt 0:02:36]} (13... Qa6 $11 {remains equal.} 14. Qxc5 Nbd7) 14. Qxc5 $16 {[%emt 0:01:46]} Na6 {[%emt 0:03:51] Inhibits Nc7.} 15. Qa3 $36 {[%emt 0:13:17][%mdl 2048] White is really pushing.} d4 {[%emt 0:07:40]} 16. Nf3 {[%emt 0:01:31]} (16. Nd6 $6 Re6 17. Nxf7 (17. Bxa6 Bxa6 18. Rc6 Bb5 $19 {[%mdl 64] Pin}) 17... Kxf7 $11) 16... dxe3 {[%emt 0:01:06][%cal Oa6b4]} 17. O-O $1 {[%emt 0:00:13]} exf2+ {[%emt 0:06:09]} (17... e2 $2 18. Rfe1 $18) ({Black should play} 17... Nb4 $14 18. Qxb4 (18. Bxh7+ Nxh7 19. Qxb4 Rb8 $11) 18... Qxd3) 18. Rxf2 {[%emt 0:00:14] Strongly threatening Ng5.} Qb6 {[%emt 0:00:29]} 19. Nd6 {[%emt 0:06:52]} Rd8 {[%emt 0:04:37] [#]} 20. Nxf7 {[%emt 0:03:14][%mdl 576] Decoy. White is much more active.} Rxd3 {[%emt 0:04:10][%mdl 64] Deflection} (20... Kxf7 $2 21. Ng5+ (21. Re1 Bb7 $14) 21... Ke8 22. Re1+ (22. Bxh7 Rd5 $18) 22... Kd7 23. Qe7+ (23. Bxh7 Kc7 $11) 23... Kc6 24. Bxa6 (24. Qxg7 Rxd3 25. Qxf6+ Kb7 $11) 24... Bxa6 25. Re6+ (25. Qxg7 Rd6 $18) 25... Kb5 26. Rxb6+ axb6 27. Qxg7 Rd1+ 28. Kh2 $18) 21. Qxd3 {[%emt 0:00:58]} Nb4 {[%emt 0:00:04] [#]} 22. Qd8+ {[%emt 0:11:34]} ({Reject} 22. Qc4 $6 Be6 $11) (22. Qd6 $1 $16 {[%cal Oa2a3] Black must now prevent a3!} Qxf2+ {[%mdl 64] Decoy} 23. Kxf2 Ne4+ 24. Ke3 Nxd6 25. Nxd6) 22... Qxd8 $1 $14 {[%emt 0:00:24]} 23. Nxd8 {[%emt 0:00:02]} Nd3 {[%emt 0:00:16]} 24. Rc7 {[%emt 0:00:30]} Nxf2 {[%emt 0:03:13]} 25. Kxf2 {[%emt 0:00:28]} Nd5 $1 {[%emt 0:01:00]} 26. Rc5 {[%emt 0:06:53]} Nb4 {[%emt 0:00:20] aiming for ...Nd3+.} 27. Ne5 {[%emt 0:00:06] Inhibits Nd3+. The position is equal.} Bxh3 $1 {[%emt 0:01:24][%mdl 64] Discovered Attack} 28. Ndc6 {[%emt 0:03:38]} Nxc6 {[%emt 0:00:12]} 29. Rxc6 $11 {[%emt 0:00:37][%mdl 4096] Endgame KRB-KRN} Re8 {[%emt 0:02:57]} 30. Rc5 {[%emt 0:00:29]} Be6 {[%emt 0:03:16]} 31. a3 {[%emt 0:00:10]} Bb3 {[%emt 0:12:34]} 32. Nc6 {[%emt 0:04:19]} a6 {[%emt 0:00:50]} 33. Nd4 {[%emt 0:00:23]} Rb8 {[%emt 0:02:34]} 34. Ke3 {[%emt 0:00:05]} h5 {[%emt 0:01:30]} 35. g3 {[%emt 0:02:50]} Bf7 {[%emt 0:01:42]} 36. b4 {[%emt 0:00:12]} Re8+ {[%emt 0:00:03]} 37. Kf4 {[%emt 0:00:31]} Bg6 {[%emt 0:00:46] Threatens to win with ...Re4+.} 38. Re5 {[%emt 0:01:01] Prevents Re4+.} Rxe5 {[%emt 0:04:09]} 39. Kxe5 {[%emt 0:00:07] a4 would be deadly. KB-KN} Be8 {[%emt 0:00:05] Inhibits a4.} 40. Kf5 {[%emt 0:03:13]} Kf7 {[%emt 0:01:18]} 41. Kg5 {[%emt 0:50:14]} g6 {[%emt 0:07:16]} 42. Nb3 {[%emt 0:00:00]} Ke7 {[%emt 0:14:09]} 43. Nc5 {[%emt 0:00:00]} a5 {[%emt 0:00:51]} 44. bxa5 {[%emt 0:00:00] Hoping for a6.} Kd6 {[%emt 0:00:07]} 45. Ne4+ {[%emt 0:00:00]} Kc6 {[%emt 0:02:36]} 46. Kf6 {[%emt 0:00:00]} (46. Nf6 $5 Bf7 $8 47. Ne4 $11) 46... Kc7 {[%emt 0:00:37]} 47. Nc5 {[%emt 0:00:00]} Kc6 {[%emt 0:03:21]} 48. Na6 {[%emt 0:00:00] Ke7 is the strong threat.} Kb7 {[%emt 0:01:49]} 49. Nc5+ {[%emt 0:00:00]} Kc6 {[%emt 0:03:44]} 50. Ne4 {[%emt 0:00:00]} Kc7 {[%emt 0:01:17]} 51. Nc3 {[%emt 0:00:00]} Kb7 {[%emt 0:06:15]} 52. Nd5 {[%emt 0:00:00]} Bc6 {[%emt 0:01:28]} 53. Ne7 {[%emt 0:00:00][%cal Oe7c6] Intending Nxc6! and mate.} Bf3 {[%emt 0:00:49]} 54. Nxg6 {[%emt 0:00:00]} Ka6 {[%emt 0:00:09]} 55. Ne5 {[%emt 0:00:00]} Be2 {[%emt 0:00:52]} 56. Nc6 {[%emt 0:00:00]} Bf3 {[%emt 0:00:22]} 57. Nd4 {[%emt 0:01:41]} Bd1 {[%emt 0:00:10]} 58. Ne6 {[%emt 0:00:04]} Kxa5 {[%emt 0:00:25]} 59. Nc5 {[%emt 0:00:01]} Bc2 {[%emt 0:02:55]} 60. Ke5 {[%emt 0:00:31]} Kb5 {[%emt 0:01:37]} 61. Kd4 {[%emt 0:00:05]} Bf5 {[%emt 0:03:12]} 62. Kd5 {[%emt 0:00:40]} Bg4 {[%emt 0:00:42]} 63. Kd6 {[%emt 0:01:10]} Bf3 {[%emt 0:01:07]} 64. Nd3 {[%emt 0:01:12]} Ka4 {[%emt 0:00:15]} 65. Nf4 {[%emt 0:00:13]} Kxa3 {[%emt 0:00:15]} 66. Nxh5 {[%emt 0:00:06]} Bxh5 {[%emt 0:00:04]} 67. g4 {[%emt 0:00:05]} Bxg4 {[%emt 0:00:02] An interesting game.   Weighted Error Value: White=0.05 (flawless) /Black=0.07 (flawless)} 1/2-1/2

[Event "85th Tata Steel Challengers 2023"]
[Site "Wijk aan Zee"]
[Date "2023.01.14"]
[Round "1.2"]
[White "Donchenko, Alexander"]
[Black "Sindarov, Javokhir"]
[Result "1/2-1/2"]
[ECO "A31"]
[WhiteElo "2627"]
[BlackElo "2654"]
[Annotator "TA"]
[PlyCount "66"]
[EventDate "2023.01.10"]
[EventType "tourn"]
[EventCountry "NED"]
[SourceTitle "playchess.com"]
[Source "ChessBase"]
[SourceQuality "1"]
[TimeControl "40/6000+30:30/3000+30:900+30"]

{[%evp 13,66,22,36,20,33,23,21,7,4,-17,-23,-67,-69,-71,-63,-168,-168,-134,-74,-73,-76,-76,-74,-87,-88,-74,-75,-83,-40,-47,0,0,9,0,0,0,0,-4,0,0,0,0,0,0,0,0,0,0,0,0,0,0,0,-4,0]} 1. Nf3 {[%emt 0:00:04]} Nf6 {[%emt 0:00:12]} 2. c4 {[%emt 0:00:17]} g6 {[%emt 0:00:32]} 3. Nc3 {[%emt 0:00:15]} c5 {[%emt 0:01:00]} 4. d4 {[%emt 0:00:28]} cxd4 {[%emt 0:02:34]} 5. Nxd4 {[%emt 0:01:19]} Nc6 {[%emt 0:00:09]} 6. g3 {[%emt 0:01:03]} d6 $1 {[%emt 0:19:35][%mdl 4] now scores much better than the old 6...Bg7.} 7. Bg2 {[%emt 0:01:24]} Bd7 {[%emt 0:00:29]} 8. Nc2 {[%emt 0:04:21] A31: Symmetrical English: 2 Nf3 Nf6 3 d4.} Bg7 {[%emt 0:00:40]} 9. b3 {[%emt 0:02:22]} h5 {[%emt 0:05:22]} 10. Bb2 {[%emt 0:10:04]} h4 {[%emt 0:00:58]} 11. Nd5 {[%emt 0:02:34] [#]} Ne5 $146 {[%emt 0:14:50][%cal Bc6e5,Be5d3,Bd3f2][%mdl 32]} ({Predecessor:} 11... Nh5 12. Bxg7 Nxg7 13. Qd2 h3 14. Be4 e6 15. Nc3 f5 16. Bf3 Ne5 17. Qxd6 Nxf3+ 18. exf3 {½-½ Roiz,M (2605)-Akopian,V (2650) Wch Rapid St Petersburg 2018 (4)}) 12. Bd4 {[%emt 0:21:48]} Nxd5 {[%emt 0:21:22]} 13. Bxd5 {[%emt 0:03:01]} Bc6 $1 {[%emt 0:00:20]} 14. f4 {[%emt 0:13:29]} (14. Bxc6+ $15 bxc6 15. Qd2) 14... Bxd5 $19 {[%emt 0:23:58]} 15. cxd5 {[%emt 0:00:16]} Qa5+ {[%emt 0:03:39]} (15... hxg3 $142 $1 16. fxe5 Rxh2) 16. Qd2 $17 {[%emt 0:03:03] [#]} (16. Kf2 $2 hxg3+ 17. Kxg3 Qxd5 $17) 16... Nd3+ $1 {[%emt 0:00:41]} 17. Kd1 {[%emt 0:04:03][%cal Be1d1,Bd1d2,Bd2d3,Bd3d4,Bd4c3,Bc3b2][%mdl 32] [#]} Qxd2+ {[%emt 0:00:14]} ({Of course not} 17... Qxd5 18. Qxd3 Qxh1+ 19. Kd2 Qxh2 20. Bxg7 $11) 18. Kxd2 {[%emt 0:00:02]} Bxd4 {[%emt 0:00:07]} 19. Nxd4 {[%emt 0:00:11]} Nf2 {[%emt 0:00:03]} 20. Rhg1 {[%emt 0:06:17]} Ng4 {[%emt 0:00:38]} 21. Kd3 {[%emt 0:12:36]} h3 {[%emt 0:06:23]} (21... Kd7 $15 {might be stronger.}) 22. Nf3 $1 $36 {[%emt 0:00:57][%mdl 2048] White has some pressure. The position is equal.} Rh5 {[%emt 0:02:43]} 23. Kd4 {[%emt 0:04:58]} e5+ {[%emt 0:01:30]} 24. dxe6 $1 {[%emt 0:00:24]} fxe6 {[%emt 0:00:03]} 25. Rac1 {[%emt 0:03:15]} Rd5+ {[%emt 0:00:24]} 26. Kc3 {[%emt 0:00:21]} e5 {[%emt 0:03:17]} 27. e4 {[%emt 0:05:21]} Rc8+ {[%emt 0:00:37]} 28. Kb2 $1 {[%emt 0:00:03]} Rxc1 {[%emt 0:00:50]} 29. Rxc1 {[%emt 0:00:28]} Rd3 {[%emt 0:00:46]} 30. Rc3 {[%emt 0:00:23]} Rd1 {[%emt 0:00:17]} 31. Rc1 {[%emt 0:00:22]} Rd3 {[%emt 0:00:57]} 32. Rc3 {[%emt 0:00:07]} Rd1 {[%emt 0:00:22]} 33. Rc1 {[%emt 0:00:10]} Rd3 {[%emt 0:00:44] Black had all chances to win.   Weighted Error Value: White=0.10 (very precise) /Black=0.06 (flawless)} 1/2-1/2

[Event "85th Tata Steel Challengers 2023"]
[Site "Wijk aan Zee"]
[Date "2023.01.14"]
[Round "1.3"]
[White "L'Ami, Erwin"]
[Black "Supi, Luis Paulo"]
[Result "1/2-1/2"]
[ECO "E06"]
[WhiteElo "2627"]
[BlackElo "2608"]
[Annotator "TA"]
[PlyCount "101"]
[EventDate "2023.01.10"]
[EventType "tourn"]
[EventCountry "NED"]
[SourceTitle "playchess.com"]
[Source "ChessBase"]
[SourceQuality "1"]
[TimeControl "40/6000+30:30/3000+30:900+30"]

{[%evp 11,100,27,18,12,23,22,25,0,31,26,14,11,53,30,31,27,59,45,52,50,62,0,87,18,21,0,-11,-2,8,0,11,-59,-75,-72,-65,-83,-92,-195,-183,-168,-189,-194,-175,-204,-209,-205,-192,-245,-234,-316,-294,-318,-340,-356,-355,-364,-359,-317,-147,-205,-167,-232,-254,-238,-255,-242,-247,-232,-227,-520,-267,-316,-350,-331,-352,-338,-275,-186,-16,-16,-16,-16,0,0,0,0,389,0,0,0,0]} 1. d4 {[%emt 0:00:04]} d5 {[%emt 0:00:06]} 2. c4 {[%emt 0:00:10]} e6 {[%emt 0:00:15]} 3. Nf3 {[%emt 0:00:27]} Nf6 {[%emt 0:00:41]} 4. g3 {[%emt 0:01:25]} Be7 {[%emt 0:01:44]} 5. Bg2 {[%emt 0:00:41]} O-O {[%emt 0:00:05]} 6. O-O {[%emt 0:00:16]} a5 {[%emt 0:01:14]} 7. Nc3 {[%emt 0:05:34] E06: Closed Catalan: Early deviations.} c6 {[%emt 0:00:14]} 8. b3 {[%emt 0:04:19]} b6 {[%emt 0:00:47]} 9. Ne5 {[%emt 0:07:03] White has an edge.} Bb7 {[%emt 0:10:41]} 10. Bb2 {[%emt 0:05:46]} Nfd7 {[%emt 0:14:27]} 11. Nd3 {[%emt 0:06:47] [#]} Na6 $146 {[%emt 0:00:37]} ({Predecessor:} 11... Bf6 12. cxd5 exd5 13. Nf4 Na6 14. e4 dxe4 15. Nxe4 Be7 16. d5 cxd5 17. Nxd5 Bxd5 18. Qxd5 Nb4 19. Qf5 Ra7 20. Rfd1 g6 21. Qf4 Qb8 22. Qh6 f6 23. Ng5 {1-0 Willson,O (1909)-Waters,C (2147) GBR-ch 102nd 2015 (7)}) 12. e4 {[%emt 0:05:01]} dxc4 {[%emt 0:02:01]} 13. bxc4 {[%emt 0:00:38]} e5 {[%emt 0:02:06][%mdl 64] Deflection} 14. Nxe5 {[%emt 0:04:17]} Nxe5 {[%emt 0:01:38]} 15. dxe5 {[%emt 0:00:08]} Nc5 {[%emt 0:03:06]} 16. Qe2 {[%emt 0:07:31]} ({White should try} 16. Qb1 $14) 16... Qc7 {[%emt 0:10:58]} (16... Qd3 $1 $11) 17. Nd1 {[%emt 0:07:01]} (17. Rfd1 $16) 17... Na4 {[%emt 0:11:20]} 18. Ne3 {[%emt 0:04:07]} Bc5 {[%emt 0:01:17] Repels Bd4} 19. Nf5 {[%emt 0:05:53]} (19. Rfd1 {simplifies} Nxb2 20. Qxb2 Rae8 21. Nf5) 19... Rae8 {[%emt 0:13:21] [#]} (19... Nxb2 {simplifies} 20. Qxb2 Bc8 21. Kh1 Rd8) 20. Qg4 $1 {[%emt 0:20:12][%csl Gf5][%cal Rg4g7]} g6 {[%emt 0:08:38] [#]} 21. Qh4 {[%emt 0:05:26]} f6 $1 $15 {[%emt 0:07:35]} (21... Nxb2 22. Nh6+ Kg7 23. Nf5+ gxf5 24. Qg5+ Kh8 25. Qf6+ Kg8 26. Qg5+ Kh8 27. Qf6+ Kg8 28. Qg5+ Kh8 $11) (21... gxf5 22. Qg5+ Kh8 23. Qf6+ Kg8 24. Qg5+ Kh8 25. Qf6+ Kg8 26. Qg5+ $11) 22. Nh6+ {[%emt 0:04:08]} Kh8 {[%emt 0:00:13]} 23. Bc1 {[%emt 0:00:20]} Qxe5 {[%emt 0:01:53]} (23... fxe5 $6 24. Bg5 $11) 24. Bf4 {[%emt 0:03:07]} (24. Rb1 $17) 24... Qe6 $1 $36 {[%emt 0:01:33][%mdl 2048] Black is on the roll.} 25. Be3 {[%emt 0:04:38]} Bxe3 {[%emt 0:00:51]} (25... Qxc4 26. Ng4 Qe6 27. Rfc1 $17) 26. fxe3 {[%emt 0:00:04]} Kg7 {[%emt 0:04:29]} (26... Qxc4 $2 27. Rxf6 Kg7 28. Rxf8 Rxf8 29. Qe7+ Rf7 30. Nxf7 Qxf7 31. Qd8 $18) 27. Ng4 {[%emt 0:02:23][%cal Oe4e5]} h5 {[%emt 0:00:40]} (27... Qxc4 $2 28. Nxf6 h5 29. Nxe8+ Rxe8 30. Qf6+ Kh7 31. Qf7+ Qxf7 32. Rxf7+ Kh6 33. Rxb7 $18) 28. Nf2 {[%emt 0:00:06]} Nc3 {[%emt 0:01:47]} (28... Qxc4 29. Rac1 Qxa2 30. e5) 29. c5 {[%emt 0:03:11]} (29. Qh3 $142) 29... b5 {[%emt 0:01:25][%cal Bb6b5,Bb5b4][%mdl 32]} (29... bxc5 30. Bf3) 30. Kh1 {[%emt 0:00:39]} b4 {[%emt 0:01:58]} (30... Nxa2 31. g4 $17) 31. g4 {[%emt 0:01:16]} Rh8 {[%emt 0:01:11]} (31... Nxa2 32. gxh5 g5 33. Qg3 $11) 32. g5 {[%emt 0:01:45]} fxg5 {[%emt 0:00:16]} (32... Nxa2 33. gxf6+ Qxf6 34. Qxf6+ Kxf6 35. Rxa2 $18) 33. Qxg5 {[%emt 0:00:02]} Ba6 {[%emt 0:01:22]} (33... Nxa2 34. Rfd1 Nc3 35. Rd6 $16) 34. Rg1 {[%emt 0:00:58] White is weak on the light squares} Ref8 {[%emt 0:02:42]} (34... Nxa2 35. Bh3 Qf6 36. Qxf6+ (36. Rxa2 Qxg5 37. Rxg5 Rhf8 $16) 36... Kxf6 37. Rxa2 $18) (34... Be2 $19 {is more deadly. aiming for ...Rhf8.} 35. Bh3 Bf3+ 36. Bg2 Rhf8) 35. Nh3 $17 {[%emt 0:01:09]} Qf6 {[%emt 0:03:15] Prevents Nf4.} ({But not} 35... Nxa2 36. Nf4 Qf6 37. Qxf6+ Kxf6 38. Rxa2 $18) 36. Qg3 {[%emt 0:00:46]} (36. Qxf6+ $142 Kxf6 37. Nf4 (37. e5+ Kxe5 38. Bxc6 Rhg8 $17)) 36... Ne2 $1 $19 {[%emt 0:00:35][%csl LRg1,LRg3]} 37. Qc7+ {[%emt 0:00:06]} Rf7 {[%emt 0:00:49]} 38. Qxa5 {[%emt 0:00:07]} Nxg1 {[%emt 0:00:32]} 39. Rxg1 {[%emt 0:00:15] [#]} Bc8 {[%emt 0:00:43]} 40. Nf4 $2 {[%emt 0:00:57]} (40. Qxb4 Bxh3 41. Bxh3 Qf3+ 42. Bg2 Qxe3 43. Qb2+ Kh7 44. Qb3 Qxb3 45. axb3) 40... g5 {[%emt 0:00:50]} 41. Ne2 {[%emt 0:11:26]} h4 {[%emt 0:09:25][%cal Bh5h4,Bh4h3][%mdl 32]} 42. Nd4 {[%emt 0:03:05]} h3 {[%emt 0:01:49]} 43. Bf3 {[%emt 0:01:01]} Kh6 {[%emt 0:04:48][%cal Og5g4] Threatens to win with ...g4!} 44. Qxb4 {[%emt 0:02:29] [#]} g4 $2 {[%emt 0:01:45]} 45. Nf5+ $1 $11 {[%emt 0:03:00]} Bxf5 {[%emt 0:04:07]} 46. exf5 {[%emt 0:00:16]} gxf3 {[%emt 0:19:08]} (46... Qxf5 $5 47. Bxg4 Rb8 $11) 47. Qf4+ {[%emt 0:02:05]} Kh7 {[%emt 0:00:06]} 48. Rg6 $1 {[%emt 0:00:20]} Qa1+ {[%emt 0:00:03]} (48... Qxf5 $2 49. Qh6#) 49. Rg1 {[%emt 0:00:09]} Qf6 {[%emt 0:00:03]} (49... Qxa2 $2 50. Qh4#) 50. Rg6 $1 {[%emt 0:00:06]} Qa1+ {[%emt 0:00:08]} (50... Qxf5 $2 51. Qh6#) 51. Rg1 {[%emt 0:00:06] White happily takes the draw. An exciting game.   Weighted Error Value: White=0.28 (precise) /Black=0.25 (precise)} 1/2-1/2

[Event "85th Tata Steel Challengers 2023"]
[Site "Wijk aan Zee"]
[Date "2023.01.14"]
[Round "1.4"]
[White "Yilmaz, Mustafa"]
[Black "Ivic, Velimir"]
[Result "1/2-1/2"]
[ECO "D33"]
[WhiteElo "2609"]
[BlackElo "2585"]
[Annotator "TA"]
[PlyCount "90"]
[EventDate "2023.01.10"]
[EventType "tourn"]
[EventCountry "NED"]
[SourceTitle "playchess.com"]
[Source "ChessBase"]
[SourceQuality "1"]
[TimeControl "40/6000+30:30/3000+30:900+30"]

{[%evp 16,90,26,28,28,17,29,27,26,35,36,33,27,35,34,12,34,31,40,52,56,40,75,46,102,93,143,146,149,120,188,174,177,132,147,116,145,142,140,141,132,112,101,90,147,143,148,136,124,123,125,121,214,121,122,128,122,86,107,12,58,59,56,57,61,0,0,0,0,0,0,0,0,0,0,0,0]} 1. Nf3 {[%emt 0:00:04]} Nf6 {[%emt 0:00:23]} 2. c4 {[%emt 0:00:31]} c5 {[%emt 0:00:45]} 3. Nc3 {[%emt 0:01:19]} e6 {[%emt 0:00:35]} 4. g3 {[%emt 0:01:30]} d5 {[%emt 0:00:34]} 5. cxd5 {[%emt 0:00:53]} exd5 {[%emt 0:00:06]} 6. d4 {[%emt 0:00:24]} Nc6 {[%emt 0:00:17]} 7. Bg2 {[%emt 0:01:02]} cxd4 $1 {[%emt 0:00:30][%mdl 4] is currently scoring better than 7...Be7.} 8. Nxd4 {[%emt 0:00:41]} Bc5 {[%emt 0:00:22]} 9. Nb3 {[%emt 0:02:23][%csl LRc5,LRd5]} Bb6 {[%emt 0:00:34] D33: Tarrasch Defence: 6 g3 sidelines.} 10. Na4 {[%emt 0:02:00]} O-O {[%emt 0:02:32]} 11. Nxb6 {[%emt 0:01:10]} axb6 {[%emt 0:00:14] White has an edge.} 12. Be3 {[%emt 0:00:35]} h5 {[%emt 0:06:21]} 13. O-O {[%emt 0:06:48][%cal Be1g1,Bg1g2,Bg2h1][%mdl 32]} h4 {[%emt 0:04:14]} 14. gxh4 {[%emt 0:03:32]} Qd6 {[%emt 0:02:32] [#] ...Ng4 would be deadly.} 15. f3 $146 {[%emt 0:13:24] Wards off Ng4} ({Predecessor:} 15. Qd2 Ra4 16. Nd4 Re8 17. Bf4 Qb4 18. Qxb4 Rxb4 19. e3 Nxd4 20. exd4 Rxb2 21. Rfb1 Rxb1+ 22. Rxb1 {½-½ Zhou,J (2583)-Ali Marandi,C (2532) Saint Louis Summer-B 2022 (7)}) 15... Nh5 {[%emt 0:06:29]} 16. Bxb6 {[%emt 0:07:50]} Nf4 {[%emt 0:06:17]} 17. e3 {[%emt 0:17:18]} Nxg2 {[%emt 0:06:15]} 18. Kxg2 {[%emt 0:00:02]} Re8 {[%emt 0:01:59]} 19. Kh1 {[%emt 0:04:23]} (19. Rg1 {feels hotter.} Qh6 20. Qxd5 Qxh4 21. Kh1) 19... Bf5 {[%emt 0:15:04]} (19... Qf6 $14) 20. Rg1 $16 {[%emt 0:05:17]} f6 {[%emt 0:03:42]} (20... Bg6 $142) 21. Bc5 {[%emt 0:08:07]} Qd7 {[%emt 0:02:17]} 22. Nd4 {[%emt 0:03:19]} Nd8 {[%emt 0:02:31]} (22... Nxd4 $16 {keeps fighting.} 23. Qxd4 (23. Bxd4 Kh7 $18) 23... Kh7) 23. Qb3 {[%emt 0:02:58] Black must now prevent Nxf5.} Rc8 {[%emt 0:05:59]} 24. Ba3 {[%emt 0:09:46]} Bh7 {[%emt 0:14:15]} 25. Rad1 {[%emt 0:01:29]} Nf7 {[%emt 0:03:10]} 26. Rg3 {[%emt 0:01:41] And now Rdg1 would win.} Kh8 {[%emt 0:06:28]} 27. Rdg1 {[%emt 0:00:42]} Rg8 {[%emt 0:00:16]} 28. Qb5 {[%emt 0:02:54]} Qxb5 {[%emt 0:02:42]} 29. Nxb5 {[%emt 0:00:01]} Rce8 {[%emt 0:01:56]} (29... Bd3 $142 30. Nc3 Bc4) 30. Bc5 {[%emt 0:03:20]} Nh6 {[%emt 0:04:28]} 31. Nd6 {[%emt 0:01:48][%csl LRb7,LRe8] Prevents Nf5.} Re6 {[%emt 0:00:50]} 32. Rd1 {[%emt 0:02:19]} b6 {[%emt 0:02:16]} 33. Bb4 {[%emt 0:00:45]} ({Weaker is} 33. Bxb6 Rxd6 34. Bc5 Re6 35. Rxd5 Nf5 $17) 33... Ra8 {[%emt 0:03:06]} (33... Rxe3 $16 {was called for.} 34. Rxd5 Rd3) 34. a3 {[%emt 0:01:37]} ({White should try} 34. Rxd5 $18 {Threatens to win with e4.} Rxe3 35. Bd2) 34... Rxe3 {[%emt 0:01:19]} 35. Rxd5 {[%emt 0:00:22]} Bg8 {[%emt 0:01:03]} 36. Rh5 {[%emt 0:03:20] Nf5 is the strong threat.} Rd3 {[%emt 0:01:18]} 37. Rb5 {[%emt 0:02:00]} ({Better is} 37. Kg2 $16) 37... Bd5 {[%emt 0:01:23]} (37... Rb8 $11) 38. Rxb6 $14 {[%emt 0:01:09]} Ng4 {[%emt 0:02:29][%mdl 64] [#] Decoy} 39. Kg2 {[%emt 0:00:39]} ({Stronger than} 39. Rxg4 Bxf3+ 40. Kg1 Bxg4 $17) 39... Ne5 {[%emt 0:00:56]} 40. Kf2 {[%emt 0:00:26]} ({White should play} 40. Bc3 $14 Bxf3+ 41. Kg1) 40... Rb3 $11 {[%emt 0:01:16] The position is equal.} 41. f4 {[%emt 0:25:38]} Rxb2+ {[%emt 0:16:51]} 42. Ke3 $1 {[%emt 0:00:15]} Nf3 {[%emt 0:04:43][%mdl 64] [#] Double Attack} 43. Rb5 {[%emt 0:06:13]} ({Don't play} 43. Rxf3 Rb3+ 44. Ke2 Bxf3+ 45. Kf2 Bd1 $19) 43... Rb3+ {[%emt 0:04:41]} 44. Kf2 {[%emt 0:00:01]} Rb2+ {[%emt 0:00:14]} 45. Ke3 {[%emt 0:00:23]} Rb3+ {[%emt 0:00:18] White really could win this.   Weighted Error Value: White=0.16 (very precise) /Black=0.15 (very precise)} 1/2-1/2